Cogmind - Beta 9.4 @@@ ROGUE MODE // 2020.03.08 @ 23:42:30 Player: Finestep Result: Destroyed by as-95886 with Assembled Maul Performance ------------- Evolutions (0) 0 Regions Visited (4) 800 Robots Destroyed (52) 260 Value Destroyed (866) 866 Prototype IDs (26) 520 Alien Tech Used (0) 0 Bonus (300) 300 TOTAL SCORE: 2746 Bonus ------- Aligned with FarCom 300 Cogmind --------- Core Integrity 0/250 Matter 270/300 Energy 121/140 System Corruption 6% Temperature Cool (43) Movement Treading (180) Ox1 Location -9/Mines Parts ------- > --- POWER (1) -------- Light Deuterium Engine > --- PROPULSION (2) --- Improved Treads Improved Treads > --- UTILITY (2) ------ High-capacity Storage Unit High-capacity Storage Unit > --- WEAPON (2) ------- Heavy Particle Cannon Minigun > --- INVENTORY (20) --- Light Angular Momentum Engine Fission Core Improved Treads High-capacity Storage Unit High-capacity Matter Pod (200) Transport Network Coupler Improved Light Armor Plating Hacking Suite EM Pulse Gun EM Pulse Gun EM Pulse Gun Guided Plasma Cannon Rocket Launcher Rocket Launcher Datajack Mining Laser Peak State ------------ > --- POWER ------------ Light Deuterium Engine > --- PROPULSION ------- Improved Treads Improved Treads > --- UTILITY ---------- High-capacity Storage Unit High-capacity Storage Unit > --- WEAPON ----------- Heavy Particle Cannon Minigun > --- INVENTORY -------- Light Deuterium Engine Light Angular Momentum Engine Fission Core Improved Treads High-capacity Storage Unit High-capacity Matter Pod Transport Network Coupler Improved Light Armor Plating Hacking Suite EM Pulse Gun EM Pulse Gun EM Pulse Gun Guided Plasma Cannon Rocket Launcher Rocket Launcher Datajack Mining Laser [Rating: 19] Favorites ----------- Power Light Ion Engine Engine Light Ion Engine Propulsion Light Treads Treads Light Treads Wheel Compact Wheel Utility High-capacity Storage Unit Storage High-capacity Storage Unit Weapon Minigun Energy Gun Beam Rifle Energy Cannon Heavy Particle Cannon Ballistic Gun Minigun Launcher Rocket Launcher Build | -11 -10 -10 -10 -9 ------- Run | Scr Mat Min Exi Min Slots Evolved . | . . . . . Power . | . . . . . Propulsion . | . . . . . Utility . | . . . . . Weapon . | . . . . . Parts Attached 51 | 7 13 14 1 16 Power 5 | 1 1 1 . 2 Engine 5 | 1 1 1 . 2 Core . | . . . . . Reactor . | . . . . . Propulsion 12 | 2 5 3 . 2 Treads 11 | 1 5 3 . 2 Leg . | . . . . . Wheel 1 | 1 . . . . Hover . | . . . . . Flight . | . . . . . Utility 7 | 2 3 . 1 1 Device . | . . . . . Storage 7 | 2 3 . 1 1 Processor . | . . . . . Hackware . | . . . . . Protection . | . . . . . Artifact . | . . . . . Weapon 27 | 2 4 10 . 11 Energy Gun 14 | . 4 5 . 5 Energy Cannon 2 | . . 1 . 1 Ballistic Gun 6 | 2 . 2 . 2 Ballistic Cannon . | . . . . . Launcher 5 | . . 2 . 3 Special Weapon . | . . . . . Impact Weapon . | . . . . . Slashing Weapon . | . . . . . Piercing Weapon . | . . . . . Special Melee Weapon . | . . . . . Unidentified Prototypes . | . . . . . Parts Lost 10 | . 4 . . 6 Power 3 | . 1 . . 2 Propulsion 3 | . 1 . . 2 Utility . | . . . . . Weapon 4 | . 2 . . 2 Highest Loss Streak 2 | . 1 . . 2 Average Slot Usage (%) 99 | . 99 99 100 96 Engine 13 | . 13 14 14 13 Treads 27 | . 27 28 28 26 Storage 28 | . 28 28 28 28 Energy Gun 14 | . 16 14 14 14 Ballistic Gun 12 | . 11 13 14 7 Naked Turns . | . . . . . Heaviest Build 78 | 14 72 74 73 78 Greatest Support 46 | 16 40 43 43 46 Greatest Overweight (x) 3 | . 1 1 1 3 Average Overweight (x) . | . . 1 1 1 Largest Inventory Capacity 20 | 8 20 20 20 20 Average Capacity 18 | 6 17 20 20 20 Most Carried 20 | 5 20 20 20 20 Average Carried 17 | 3 15 19 19 18 Final Capacity 20 | 8 20 20 20 20 Final Carried 20 | 5 20 20 20 16 Class Distribution -------------------- 87% | Hauler-Mutant 11% | Mutant Dominant Class ---------------- Hauler-Mutant | -10/Materials Hauler-Mutant | -10/Mines Hauler-Mutant | -10/Exiles Hauler-Mutant | -9/Mines Resources | -11 -10 -10 -10 -9 ----------- Run | Scr Mat Min Exi Min Matter Collected 1265 | 315 340 303 72 235 Remotely . | . . . . . Salvage Created 1576 | 151 906 362 . 157 Parts 101 | 11 60 24 . 6 Haulers Intercepted 2 | . 2 . . . Recyclers Shooed 2 | 1 1 . . . Parts Field Recycled . | . . . . . Retrieved Matter . | . . . . . Parts Self-Destructed . | . . . . . Prevented . | . . . . . Kills | -11 -10 -10 -10 -9 ------- Run | Scr Mat Min Exi Min Combat Hostiles Destroyed 35 | . 16 9 . 10 Guns 28 | . 16 5 . 7 Cannons 2 | . . . . 2 AOE 5 | . . 4 . 1 Classes Destroyed 9 | 3 4 1 . 1 Worker 3 | 1 . 2 . . Builder 3 | . 2 . . 1 Tunneler 3 | 2 1 . . . Hauler 2 | . 2 . . . Recycler 4 | 1 1 2 . . Watcher 2 | . 2 . . . Swarmer 7 | . . 7 . . Grunt 18 | . 16 2 . . Assembled 10 | . . . . 10 Best Kill Streak 4 | 2 4 3 . 2 Combat Bots Only 3 | . 3 3 . 2 Max Kills in Single Turn 2 | 1 2 2 . 1 Gunslinging 1 | . . 1 . . Exploded 2 | . . 2 . 1 Melee . | . . . . . Uniques/NPCs Destroyed . | . . . . . Combat | -11 -10 -10 -10 -9 -------- Run | Scr Mat Min Exi Min Damage Taken 1866 | . 791 414 . 661 Core 271 | . 98 49 . 124 Absorbed by Shields . | . . . . . Core Remaining (%) 100 | 100 . . . . Volleys Fired 162 | 15 85 23 . 39 Largest 2 | 2 2 2 . 2 Hottest 105 | 40 105 90 . 100 Shots Fired 299 | 30 154 39 . 76 Gun 280 | 30 154 35 . 61 Cannon 14 | . . 1 . 13 Launcher 5 | . . 3 . 2 Special . | . . . . . Kinetic 144 | 30 79 17 . 18 Thermal 111 | . 75 17 . 19 Explosive 5 | . . 3 . 2 Electromagnetic 39 | . . 2 . 37 Robot Hit Streak 19 | 11 19 8 . 5 Robot Miss Streak 4 | 4 2 3 . 3 Penetration Max . | . . . . . Secondary Targets 1 | . . 1 . . Max Gunslinging Chain 1 | . . 1 . . Shots Hit Robots 195 | 21 114 18 . 42 Core Hits 78 | 7 39 14 . 18 Critical Hits 1 | . . . . 1 Critical Kills 1 | . . . . 1 Critical Parts Destroyed . | . . . . . Melee Attacks . | . . . . . Impact . | . . . . . Slashing . | . . . . . Piercing . | . . . . . Sneak Attacks . | . . . . . Combat Hostiles . | . . . . . Follow-up Attacks . | . . . . . Damage Inflicted 3194 | 215 1580 704 . 695 Guns 2585 | 215 1580 373 . 417 Cannons 100 | . . . . 100 Explosions 509 | . . 331 . 178 Melee . | . . . . . Ramming . | . . . . . Kinetic 1234 | 215 684 205 . 130 Thermal 1291 | . 896 252 . 143 Explosive 425 | . . 247 . 178 Electromagnetic 244 | . . . . 244 Impact . | . . . . . Slashing . | . . . . . Piercing . | . . . . . Highest Corruption 6 | . 4 4 4 6 Average Corruption 4 | . 3 4 4 4 Corruption Purged . | . . . . . Effects 59 | . 3 29 14 13 Message Errors 18 | . . 9 6 3 Matter Fused 16 | . 1 8 3 4 Heat Flow Errors 5 | . 1 2 2 . Energy Discharges 6 | . 1 4 1 . Data Loss (minor) 6 | . . 2 2 2 Targeting Errors 7 | . . 3 . 4 Weapon Failures 1 | . . 1 . . Overload Shots . | . . . . . Overflow Damage 21 | . . 4 . 17 Projectiles 2 | . . . . 2 Explosions 19 | . . 4 . 15 Melee . | . . . . . Knockbacks . | . . . . . Impact . | . . . . . Kinetic . | . . . . . Secondary . | . . . . . Self-Inflicted Damage 21 | . . . . 21 Shots 1 | . . . . 1 Rammed . | . . . . . Targets Rammed . | . . . . . Kicked . | . . . . . Crushed . | . . . . . Highest Temperature 321 | . 321 273 193 174 Average Temperature 92 | . 110 75 93 64 Received Heat Transfer 604 | . 447 57 . 100 Effects 3 | . 3 . . . Energy Bleed 1 | . 1 . . . Interference 2 | . 2 . . . Siege Activations . | . . . . . Robots Corrupted . | . . . . . Combat Hostiles . | . . . . . Parts Fried . | . . . . . Impact Corruptions . | . . . . . Robots Melted 1 | . 1 . . . Combat Hostiles . | . . . . . Parts Melted 4 | . 2 2 . . Heat Transferred 2889 | . 2123 507 . 259 Parts Sabotaged . | . . . . . Parts Stolen . | . . . . . Parts Stripped . | . . . . . Power Chain Reactions . | . . . . . Missiles Intercepted . | . . . . . Alert | -11 -10 -10 -10 -9 ------- Run | Scr Mat Min Exi Min Peak Influence 155 | 20 155 120 . 20 Average Influence 37 | 6 40 46 . 1 Maximum Alert Level . | . . . . . Low Security (%) 100 | 100 100 100 . 100 Level 1 . | . . . . . Level 2 . | . . . . . Level 3 . | . . . . . Level 4 . | . . . . . Level 5 . | . . . . . High Security . | . . . . . Max Security . | . . . . . Squads Dispatched 5 | . 4 1 . . Investigation 4 | . 3 1 . . Extermination . | . . . . . Reinforcement 1 | . 1 . . . Assault . | . . . . . Garrison . | . . . . . Intercept . | . . . . . Construction Impeded . | . . . . . Haulers Reinforced . | . . . . . Stealth | -11 -10 -10 -10 -9 --------- Run | Scr Mat Min Exi Min Distress Signals 2 | . 1 . . 1 Communications Jammed . | . . . . . Distress Signals . | . . . . . Times Spotted 53 | . 23 12 . 18 Peak Tracking Total 5 | . 3 3 . 5 Tactical Retreats 7 | . . 1 . 6 Traps | -11 -10 -10 -10 -9 ------- Run | Scr Mat Min Exi Min Traps Triggered 3 | . 3 . . . Indirectly . | . . . . . Trap Hack Attempts . | . . . . . Triggered . | . . . . . Disarmed . | . . . . . Reprogrammed . | . . . . . Reused . | . . . . . Traps Extracted . | . . . . . Installed . | . . . . . Triggered . | . . . . . Machines | -11 -10 -10 -10 -9 ---------- Run | Scr Mat Min Exi Min Machines Disabled 2 | . . 1 . 1 Max in Single Turn 1 | . . 1 . 1 Machines Sabotaged . | . . . . . Garrisons Compromised . | . . . . . Overloaded Fab Kills . | . . . . . Fab Network Shutdowns . | . . . . . Hacking | -11 -10 -10 -10 -9 --------- Run | Scr Mat Min Exi Min Machines Accessed 11 | . 8 1 2 . Terminals 6 | . 6 . . . Fabricators . | . . . . . Repair Stations . | . . . . . Recycling Units 2 | . 2 . . . Scanalyzers . | . . . . . Garrison Access . | . . . . . Total Hacks 37 | . 31 1 5 . Successful 23 | . 17 1 5 . Failed 13 | . 13 . . . Catastrophic . | . . . . . Database Lockouts 1 | . 1 . . . Manual 21 | . 20 . 1 . Terminals 25 | . 25 . . . Fabricators . | . . . . . Repair Stations . | . . . . . Recycling Units 6 | . 6 . . . Scanalyzers . | . . . . . Garrison Access . | . . . . . Terminal Hacks 13 | . 7 1 5 . Record 4 | . . . 4 . Robot Analysis 2 | . 2 . . . Prototype ID Bank 2 | . 2 . . . Open Door 1 | . . 1 . . Terminal Index 1 | . 1 . . . Unreport Threat 2 | . 2 . . . EX-Prototype ID Bank 1 | . . . 1 . Fabricator Hacks . | . . . . . Repair Station Hacks . | . . . . . Recycling Unit Hacks 2 | . 2 . . . Retrieve Components 2 | . 2 . . . Scanalyzer . | . . . . . Garrison Access Hacks . | . . . . . Unauthorized Hacks 19 | . 19 . . . Terminals 6 | . 6 . . . Track 1 | . 1 . . . Botnet 4 | . 4 . . . Operators 1 | . 1 . . . Fabricators . | . . . . . Repair Stations . | . . . . . Recycling Units 2 | . 2 . . . Tunnel 2 | . 2 . . . Scanalyzers . | . . . . . Garrison Access . | . . . . . Data Cores Recovered . | . . . . . Used . | . . . . . Hacking Detections 7 | . 7 . . . Full Trace Events . | . . . . . Feedback Events . | . . . . . Feedback Blocked . | . . . . . Robot Schematics Acquired . | . . . . . Robots Built . | . . . . . Matter . | . . . . . Time . | . . . . . Total Robot Build Rating . | . . . . . Part Schematics Acquired . | . . . . . Parts Built . | . . . . . Matter . | . . . . . Time . | . . . . . Total Part Build Rating . | . . . . . Parts Repaired . | . . . . . Time . | . . . . . Parts Recycled . | . . . . . Recycled Matter . | . . . . . Retrieved Matter . | . . . . . Retrieved Components 19 | . 19 . . . Parts Scanalyzed . | . . . . . Part Schematics Acquired . | . . . . . Parts Damaged . | . . . . . Bothacking | -11 -10 -10 -10 -9 ------------ Run | Scr Mat Min Exi Min Used RIF Installer . | . . . . . Robots Hacked . | . . . . . Non-combat . | . . . . . Combat . | . . . . . Robot Hacks Applied . | . . . . . Relay Couplers Released . | . . . . . Robots Rewired . | . . . . . Allies Hacked . | . . . . . Hacks Repelled . | . . . . . Allies | -11 -10 -10 -10 -9 -------- Run | Scr Mat Min Exi Min Total Allies . | . . . . . Largest Group . | . . . . . Highest-Rated Group . | . . . . . Highest-Rated Ally . | . . . . . Total Orders . | . . . . . Ally Attacks . | . . . . . Total Damage . | . . . . . Kills . | . . . . . Allies Corrupted . | . . . . . Allies Melted . | . . . . . Intel | -11 -10 -10 -10 -9 ------- Run | Scr Mat Min Exi Min Robot Analysis Total 2 | . 2 . . . Derelict Logs Recovered 2 | . . 2 . . Drone Launches . | . . . . . Drone Recoveries . | . . . . . Exploration | -11 -10 -10 -10 -9 ------------- Run | Scr Mat Min Exi Min Turns Passed 4309 | 109 1537 1521 679 463 Spaces Moved 2085 | 53 700 792 375 165 Core 3 | 3 . . . . Treads 2005 | . 673 792 375 165 Legs . | . . . . . Wheels 77 | 50 27 . . . Hover . | . . . . . Flight . | . . . . . Fastest Speed 50 | 50 100 180 180 180 Average Speed 176 | 97 174 180 180 185 Slowest Speed 220 | 100 180 180 180 220 Overloaded Moves . | . . . . . Propulsion Burnouts . | . . . . . Robots Hopped . | . . . . . Cave-ins Triggered . | . . . . . Exploration Rate (%) 55 | 4 82 99 72 22 Regions Visited 4 Branch Regions 3 Pre-discovered Areas 4 | . 2 1 1 . Known Exits Taken 1 | . . 1 . . Unknown Exits Taken 3 | 1 1 . 1 . Scrap Searched 2 | . . 1 . 1 Spaces Dug 9 | . . 9 . . Terrain Destroyed 42 | . . 14 . 28 Melee . | . . . . . Projectile 9 | . . . . 9 AOE 33 | . . 14 . 19 Actions | -11 -10 -10 -10 -9 --------- Run | Scr Mat Min Exi Min Total 2424 | 79 862 853 381 249 Wait 68 | . 41 6 . 21 Move 2081 | 52 699 791 374 165 Hop . | . . . . . Pick Up 33 | 5 18 6 3 1 Fast Attach 18 | 7 4 4 . 3 Attach 11 | . 3 2 . 6 Detach 4 | . . 1 . 3 Swap 22 | . 6 8 1 7 Drop 23 | . 6 12 3 2 Fire 162 | 15 85 23 . 39 Melee . | . . . . . Ram . | . . . . . Kick . | . . . . . Crush . | . . . . . Escape Stasis . | . . . . . Rewire 2 | . . . . 2 Trap . | . . . . . Miscellaneous . | . . . . . Route ------- -11/Scrapyard -10/Materials (discovered 4 exits: [*Mat x3] / *Min) -10/Mines (discovered 3 exits: [*Mat x2] / *Exi) -10/Exiles -9/Mines History --------- Turn | Location | Event 2 | -11/Scrapyard | Met Revision 17 11 | -11/Scrapyard | Discovered new exit (range 16) 110 | -11/Scrapyard | Entered Materials 305 | -10/Materials | Build established: Mutant 581 | -10/Materials | Central database locked down 799 | -10/Materials | Build established: Hauler-Mutant 903 | -10/Materials | Discovered new exit (range 7) 1314 | -10/Materials | Discovered new exit (range 3) 1420 | -10/Materials | Discovered new exit (range 13) 1623 | -10/Materials | Discovered new exit (range 7) 1647 | -10/Materials | Entered Mines 1652 | -10/Mines | Met a Derelict shopkeep closing up shop 1665 | -10/Mines | Met a Derelict bent on vengeance 1773 | -10/Mines | Core integrity fell below 50% 1838 | -10/Mines | Discovered new exit (range 9) 2054 | -10/Mines | Joined a pair of Derelicts in attacking an 0b10 outpost 2237 | -10/Mines | Discovered new exit (range 16) 2906 | -10/Mines | Identified exit to Exiles 3159 | -10/Mines | Deemed a non-threat by the Exiles lab entrance 3168 | -10/Mines | Entered Exiles 3215 | -10/Exiles | Met 8R-AWN 3246 | -10/Exiles | Met EX-HEX 3312 | -10/Exiles | Met EX-DEC 3325 | -10/Exiles | Learned location of Zion (-6) 3354 | -10/Exiles | Met EX-BIN 3379 | -10/Exiles | Aligned with FarCom system 3381 | -10/Exiles | Given EX-Vault access code 3422 | -10/Exiles | Opened EX-Vault 3435 | -10/Exiles | Found Gui. Plasma Cannon 3472 | -10/Exiles | Warned to stay clear of 0b10 Research branches 3821 | -10/Exiles | Discovered new exit (range 15) 3847 | -10/Exiles | Left Exiles lab with Gui. Plasma Cannon 3847 | -10/Exiles | Entered Mines 3856 | -9/Mines | Received a Rocket Launcher from a helpful Derelict 3865 | -9/Mines | Assembled infested the area 4046 | -9/Mines | Core integrity fell below 20% 4310 | -9/Mines | Destroyed by as-95886 with Assembled Maul Last Messages --------------- 04201_ JZJOP7JW0T5A#A2> 8YV 04202_ System corrupted: Minigun targeting data glitched. 04203_ Lgt. Deuterium Engine destroyed. 04205_ System corrupted: Minigun targeting data glitched. 04205_ Matter Pump disabled. 04211_ as-17471 destroyed. 04213_ Acquired 10 matter. 04217_ Acquired 2 matter. 04220_ Acquired 1 matter. 04240_ U-05 Engineer builds a Wall. 04241_ Destroyed Asb. Hover Unit. 04243_ U-05 Engineer destroyed. 04248_ as-39685 destroyed. 04250_ U>EQQF1X3LSJIG6EXN/=ZL|M5,XW/